fUSD/lending_fUSD_20240704
["ID","MTS","AMOUNT","RATE_DAILY","PERIOD"]
[331179689,1720122633457,-346.14,0.00012354,2]
[331179691,1720122633467,-1720.45,0.00012354,2]
[331179693,1720122633476,-4390.74,0.00012355,2]
[331179695,1720122633485,-150.0,0.00012355,2]
[331179697,1720122633495,-1195.29,0.00012372,2]
[331179699,1720122633505,-1774.54634892,0.00012375,2]
[331179701,1720122633517,-22125.45365108,0.00012375,2]
[331179703,1720122633526,-200.0,0.00012398,2]
[331179705,1720122633535,-150.99,0.00012398,2]
[331179707,1720122633545,-600.0,0.00012444,2]
[331179709,1720122633555,-237.0,0.0001246,2]
[331179711,1720122633564,-499.99,0.0001246,2]
[331179713,1720122633574,-500.0,0.00012465,2]
[331179715,1720122633583,-250.0,0.00012468,2]
[331179717,1720122633593,-152.8,0.00012468,2]
[331179719,1720122633603,-500.0,0.0001248,2]
[331179721,1720122633612,-152.8,0.00012502,2]
[331179723,1720122633622,-1299.58083874,0.0001251,2]
[331179724,1720122633633,-1792.43415938,0.0001251,2]
[331179726,1720122633642,-152.8,0.00012537,2]
[331179728,1720122633651,-152.8,0.00012571,2]
[331179730,1720122633661,-152.8,0.00012605,2]
[331179732,1720122633670,-152.8,0.00012639,2]
[331179734,1720122633679,-703.36,0.00012642,2]
[331179736,1720122633689,-212.3449,0.00012652,2]
[331179738,1720122633699,-5388.48621744,0.00012652,2]
[331179740,1720122633710,-269.12884661,0.00012652,2]
[331180099,1720122637514,-883.7505148,0.00012652,2]
[331180108,1720122637620,-427.20419193,0.00012652,2]
[331180109,1720122638376,-236.44732922,0.00012652,2]
[331180110,1720122638387,-78.03267078,0.0001266,2]
[331180111,1720122638398,-104.81732922,0.0001266,2]
[331180112,1720122638408,-152.8,0.00012673,2]
[331180113,1720122638417,-380.9838,0.00012679,2]
[331180114,1720122638427,-1753.71677526,0.00012689,2]
[331180226,1720122639711,-500.0,0.00012503,2]
[331180234,1720122639797,-1150.70064965,0.00012689,2]
[331180243,1720122639886,-384.58090312,0.00012689,2]
[331180245,1720122639906,-577.51976212,0.00012689,2]
[331180247,1720122639917,-2339.87908082,0.00012689,2]
[331180250,1720122639929,-342.30435035,0.00012689,2]
[331180252,1720122639940,-1677.4,0.00012689,2]
[331180539,1720122642636,-0.00361989,0.00012302,2]
[331180554,1720122642766,-683.70673793,0.00012302,2]
[331181527,1720122699040,1706.01053776,0.00011199,2]
[331181529,1720122774386,1287.33023709,0.00011199,2]
[331181530,1720122775543,1061.34399988,0.00011199,2]
[331181531,1720122850927,242.43380697,0.00011199,2]
[331181532,1720122852724,500.0,0.00011199,2]
[331181533,1720122853040,875.0,0.00011199,2]
[331181534,1720122871069,844.6469,0.00011199,2]
[331181535,1720122879658,475.71197158,0.00011199,2]
[331181536,1720122885362,258.88603077,0.00011199,2]
[331181537,1720122893790,556.72469797,0.00011199,2]
[331181538,1720122895253,155.0,0.00011199,2]
[331181539,1720122897525,300.47826733,0.00011199,2]
[331181540,1720122917999,520.7022797,0.00011199,2]
[331181541,1720122927513,300.47826733,0.00011199,2]
[331181544,1720122936518,271.85724688,0.00011199,2]
[331181545,1720122978316,4401.0275544,0.00011199,2]
[331181546,1720122988978,155.0,0.00011199,2]
[331181547,1720122989601,788.74652378,0.00011199,2]
[331181548,1720122992392,647.71813835,0.00011199,2]
[331181549,1720123013453,496.10852137,0.00011199,2]
[331181550,1720123019309,625.86274909,0.00011199,2]
[331181551,1720123019585,788.74652378,0.00011199,2]
[331181557,1720123049624,717.89169523,0.00011199,2]
[331181558,1720123054891,450.0,0.00011199,2]
[331181559,1720123060972,572.25853571,0.00011199,2]
[331181560,1720123064897,1285.144203,0.00011199,2]
[331181562,1720123069671,174.02504748,0.00011199,2]
[331181563,1720123078430,1019.92903383,0.00011199,2]
[331181564,1720123087441,155.0,0.00011199,2]
[331181565,1720123099637,378.18292746,0.00011199,2]
[331181566,1720123113191,248.13765487,0.00011199,2]
[331181567,1720123123463,519.15175191,0.00011199,2]
[331181568,1720123133540,734.13,0.00010463,2]
[331181569,1720123153392,1055.73847506,0.00011199,2]
[331181570,1720123172108,1013.16514783,0.00011199,2]
[331181571,1720123180185,675.36193651,0.00011199,2]
[331181574,1720123189028,691.06526812,0.00011199,2]
[331181575,1720123209078,677.85878921,0.00011199,2]
[331181576,1720123217865,16490.56447328,0.00011199,2]
[331181578,1720123221628,544.69316985,0.00011199,2]
[331181579,1720123244358,604.77747292,0.00011199,2]
[331181580,1720123253872,528.0988798,0.00011199,2]
[331181581,1720123264675,269.66585557,0.00011199,2]
[331181582,1720123276514,156.08749291,0.00011199,2]
[331181583,1720123285526,473.99379803,0.00011199,2]
[331181584,1720123288071,520.7022797,0.00011199,2]
[331181585,1720123292887,156.97581362,0.00011199,2]
[331181586,1720123295757,238.27870455,0.00011199,2]
[331181587,1720123298996,242.43380697,0.00011199,2]
[331181588,1720123300895,255.63531546,0.00011199,2]
[331181589,1720123308528,210.23092299,0.00011199,2]
[331181590,1720123308721,156.84835865,0.00011199,2]
[331181591,1720123310488,159.9452446,0.00011199,2]
[331181592,1720123323518,210.23092299,0.00011199,2]
[331181593,1720123348748,180.01106126,0.00011199,2]
[331181595,1720123378850,163.82863023,0.00011199,2]
[331181597,1720123419776,386.68404747,0.00011199,2]
[331181598,1720123432043,286.90913679,0.00011199,2]
[331181600,1720123462087,155.0,0.00011199,2]
[331181602,1720123486655,613.37477899,0.00011199,2]
[331181613,1720123617044,304.47543261,0.00011199,2]
[331181614,1720123625024,304.47543261,0.00011199,2]
[331181615,1720123641213,9236.41322618,0.00011199,2]
[331181616,1720123671228,697.42,0.00010115,2]
[331181619,1720123720379,268.80805458,0.00011199,2]
[331181621,1720123738981,170.67391237,0.00011199,2]
[331181622,1720123761125,178.51511866,0.00011199,2]
[331181623,1720123790907,263.58284568,0.00011199,2]
[331181624,1720123813352,206.15312302,0.00011199,2]
[331181636,1720123831646,-423.248988,0.00011873,2]
[331181637,1720123831660,-1417.77473238,0.00011891,2]
[331181638,1720123831707,-3494.76952503,0.00011891,2]
[331181639,1720123831719,-585.648,0.00011891,2]
[331181640,1720123831731,-1133.55987394,0.00011891,2]
[331181641,1720123831741,-155.69771863,0.00011991,2]
[331181642,1720123831751,-250.0,0.00012033,2]
[331181643,1720123831761,-500.0,0.00012038,2]
[331181644,1720123831770,-213.18,0.00012043,2]
[331181645,1720123831780,-182.85,0.00012047,2]
[331181646,1720123831790,-169.43,0.00012052,2]
[331181647,1720123831799,-150.0,0.0001215,2]
[331181648,1720123831811,-250.0,0.00012187,2]
[331181649,1720123831820,-352.16,0.00012198,2]
[331181650,1720123831830,-663.3699,0.00012202,2]
[331181651,1720123831840,-300.0,0.00012211,2]
[331181652,1720123831850,-499.99,0.00012212,2]
[331181653,1720123831860,-300.0,0.00012212,2]
[331181654,1720123831869,-23900.0,0.00012213,2]
[331181655,1720123831878,-1004.35,0.00012213,2]
[331181656,1720123831888,-763.83,0.00012219,2]
[331181657,1720123831897,-480.0,0.00012235,2]
[331181658,1720123831914,-164.29557918,0.00012273,2]
[331181659,1720123831930,-155.0,0.00012302,2]
[331181660,1720123831946,-168.41,0.00012335,2]
[331181661,1720123831961,-329.71,0.00012341,2]
[331181662,1720123831974,-152.8,0.00012348,2]
[331181663,1720123831987,-697.42,0.00012379,2]
[331181664,1720123832000,-152.8,0.00012402,2]
[331181665,1720123832016,-152.8,0.00012455,2]
[331181666,1720123832029,-152.8,0.00012509,2]
[331181667,1720123832043,-520.0,0.00012554,2]
[331181668,1720123832058,-152.8,0.00012563,2]
[331181669,1720123832071,-1031.3470438,0.0001257,2]
[331181671,1720123832085,-3000.0,0.0001261,2]
[331181672,1720123832100,-152.8,0.00012616,2]
[331181673,1720123832112,-152.8,0.0001267,2]
[331181674,1720123832128,-3000.0,0.0001268,2]
[331181675,1720123832140,-152.8,0.00012723,2]
[331181676,1720123832156,-3000.0,0.0001276,2]
[331181677,1720123832170,-152.8,0.00012777,2]
[331181678,1720123832182,-3000.0,0.0001283,2]
[331181679,1720123832196,-152.8,0.00012831,2]
[331181680,1720123832209,-152.8,0.00012884,2]
[331181681,1720123832223,-3000.0,0.0001291,2]
[331181682,1720123832234,-152.8,0.00012938,2]
[331181683,1720123832244,-3000.0,0.0001299,2]
[331181684,1720123832257,-152.8,0.00012991,2]
[331181685,1720123832270,-1692.95927987,0.00013,2]
[331181686,1720123832283,-530.49341065,0.00013128,2]
[331181687,1720123832295,-207.0,0.00013181,2]
[331181688,1720123832307,-300.0,0.00013402,2]
[331181689,1720123832319,-390.91214695,0.00013516,2]
[331181690,1720123832332,-166.73888949,0.00013516,2]
[331181691,1720123832346,-366.13665381,0.00013516,2]
[331181692,1720123832364,-173.0,0.00013565,2]
[331181693,1720123832376,-683.4607912,0.00013574,2]
[331181694,1720123832391,-600.0,0.000136,4]
[331181695,1720123832401,-562.63,0.00013699,2]
[331181696,1720123832412,-837.86,0.00013699,2]
[331181697,1720123832422,-1200.0,0.000137,5]
[331181698,1720123832436,-480.0,0.00013764,2]
[331181699,1720123832449,-300.67,0.00013795,2]
[331181700,1720123832463,-1800.0,0.000138,5]
[331181701,1720123832474,-552.62070963,0.000138,2]
[331181702,1720123832485,-329.71,0.00013883,2]
[331181703,1720123832497,-1547.98591501,0.000139,2]
[331181704,1720123832508,-4983.6037,0.000139,2]
[331181705,1720123832522,-384.5809,0.000139,2]
[331181706,1720123832533,-288.33852159,0.000139,2]
[331181707,1720123832544,-2966.2384,0.000139,2]
[331181708,1720123832554,-175.48904366,0.000139,2]
[331181709,1720123832565,-8901.0903,0.000139,2]
[331181710,1720123832576,-8735.39005632,0.000139,2]
[331181711,1720123832587,-167.44167065,0.000139,2]
[331181712,1720123832610,-2400.0,0.000139,5]
[331181713,1720123832622,-1620.1574,0.000139,2]
[331181714,1720123832635,-167.62086348,0.0001399,2]
[331181715,1720123832647,-167.62086348,0.0001399,2]
[331181716,1720123832659,-1269.70922416,0.00013999,2]
[331181717,1720123832680,-209.73197584,0.00013999,2]
[331181718,1720123832696,-150.0,0.00013999,2]
[331181719,1720123832711,-1057.0,0.00014,2]
[331181720,1720123832727,-702081.53878018,0.00014,2]
[331181721,1720123832880,-269.09758648,0.00014,2]
[331181722,1720123832895,-4464.6722884,0.00014,2]
[331181723,1720123832917,-16966.34573862,0.00014,2]
[331181724,1720123832931,-12450.94876913,0.00014,2]
[331181725,1720123832946,-1230.78807392,0.00014,2]
[331181726,1720123832960,-67892.99517896,0.00014,2]
[331181727,1720123832974,-299.99,0.00014,2]
[331181728,1720123832989,-1654.10393351,0.00014,2]
[331181729,1720123833003,-5962.64295461,0.00014,2]
[331181730,1720123833018,-424.71363053,0.00014,2]
[331181731,1720123837694,-224.56763525,0.00013516,2]
[331181732,1720123837704,-180.26602762,0.00014,2]
[331181733,1720123837715,-44245.34909343,0.00014,2]
[331181734,1720123837725,-368.23328701,0.00014,2]
[331181735,1720123837735,-11958.04031376,0.00014,2]
[331181736,1720123837758,-1002.45923177,0.00014,2]
[331181737,1720123837770,-4345.62206155,0.00014,2]
[331181738,1720123837867,-1002.0,0.00014,2]
[331181739,1720123837877,-3640.92366401,0.00014,2]
[331181740,1720123837888,-20612.5515836,0.00014,2]
[331181741,1720123837900,-1692.27854966,0.00014,2]
[331181742,1720123837911,-561.82928208,0.00014,2]
[331181743,1720123837923,-307.40360557,0.00014,2]
[331181744,1720123837934,-744.74833634,0.00014,2]
[331181745,1720123837954,-370.27272899,0.00014,2]
[331181746,1720123838061,-14643.4785,0.00014,2]
[331181929,1720123839993,-167.88,0.0001399,3]
[331181931,1720123840003,-16537.67278223,0.00014,2]
[331181933,1720123840015,-336.95756609,0.00014,2]
[331181938,1720123840055,-397.34954669,0.00014,2]
[331181941,1720123840066,-528.70529257,0.00014,2]
[331181947,1720123840116,-342.72647172,0.00014,2]
[331182147,1720123842155,-528.5269001,0.00014,2]
[331182149,1720123842167,-10206.6201387,0.00014,2]
[331182151,1720123842178,-1147.51503613,0.00014,2]
[331182211,1720123842739,-5748.17421115,0.00014,2]
[331182213,1720123842751,-11260.56224255,0.00014,2]
[331182341,1720123844336,-394.58101345,0.00014,2]
[331182344,1720123844353,-9038.88000004,0.00014,2]
[331182347,1720123844368,-846.50599989,0.00014,2]
[331182477,1720123846098,-263.58284568,0.00013574,2]
[331182479,1720123846107,-824.48825894,0.000139,2]
[331182481,1720123846117,-905.0,0.00014,2]
[331182483,1720123846126,-99982.16141987,0.00014,2]
[331182485,1720123846141,-14690.80963135,0.00014,2]
[331182488,1720123846152,-1504.37069116,0.00014,2]
[331182490,1720123846169,-1829.7458757,0.00014,2]
[331182492,1720123846180,-7649.12890136,0.00014,2]
[331182494,1720123846191,-445.62000001,0.00014,2]
[331182495,1720123846202,-477.47355398,0.00014,2]
[331182496,1720123846222,-1267.71601122,0.00014,2]
[331182497,1720123846235,-15792.30196992,0.00014,2]
[331182500,1720123846260,-617.95550003,0.00014,2]
[331182502,1720123846271,-3074.65,0.00014,2]
[331182537,1720124039735,3473.9426893,0.00011199,2]
[331182538,1720124083511,969.0,0.00011199,2]
[331182539,1720124106141,2374.07923418,0.00011199,2]
[331182541,1720124144188,1012.08948633,0.00011199,2]
[331182542,1720124153276,119585.37590576,0.00011199,2]
[331182543,1720124323079,328.50066625,0.00011199,2]
[331182544,1720124424935,23286.60844876,0.00011199,2]
[331182545,1720124460994,515.3187701,0.00011199,2]
[331182546,1720124466715,12087.19034661,0.00011199,2]
[331182549,1720124641165,1975.45499067,0.00011199,2]
[331182550,1720124692590,520.7022797,0.00011199,2]
[331182551,1720124709817,3393.16408193,0.00011199,2]
[331182553,1720124900633,-768.21,0.00011442,2]
[331182554,1720124900663,-2769.7822453,0.00011673,2]
[331182555,1720124900694,-300.0,0.00011772,2]
[331182556,1720124900727,-1807.0389154,0.00011773,2]
[331182557,1720124901201,-5645.0311607,0.00011773,2]
[331182558,1720124901247,-758.26612105,0.00011773,2]
[331182559,1720124925698,-847.8946,0.00011773,2]
[331182560,1720124967559,1287.66973724,0.00011199,2]
[331182561,1720125000480,766.7,0.00010832,2]
[331182571,1720125031883,-367.4388,0.00011342,2]
[331182572,1720125031895,-432.0741,0.00011342,2]
[331182573,1720125031904,-520.7022797,0.00012302,2]
[331182574,1720125031913,-150.0,0.00012757,2]
[331182575,1720125031923,-180.55786352,0.00012768,2]
[331182576,1720125032507,524.36809456,0.00011199,2]
[331182577,1720125032676,-69.44213648,0.00012768,2]
[331182578,1720125032685,-300.0,0.00012783,2]
[331182579,1720125032695,-197.82,0.00012784,2]
[331182580,1720125032704,-1000.0,0.00012785,2]
[331182581,1720125032714,-500.0,0.00012793,2]
[331182582,1720125032734,-4636.73786352,0.00012801,2]
[331182583,1720125032755,-19263.26213648,0.00012801,2]
[331182584,1720125032766,-250.0,0.00012956,2]
[331182585,1720125032776,-766.7,0.00013096,2]
[331182586,1720125032786,-2374.66560642,0.00013128,2]
[331182587,1720125032796,-168.41,0.00013128,2]
[331182588,1720125032807,-367.74824228,0.00013472,2]
[331182589,1720125032819,-684.6855422,0.00013574,2]
[331182590,1720125032829,-150.0,0.00013659,2]
[331182591,1720125032838,-150.0,0.00013665,2]
[331182592,1720125032848,-150.0,0.00013666,2]
[331182593,1720125032860,-499.99,0.00013666,2]
[331182594,1720125032870,-180.4,0.00013684,2]
[331182595,1720125032880,-150.0,0.00013695,2]
[331182596,1720125032890,-150.0,0.00013695,2]
[331182597,1720125032900,-670.28,0.00013699,2]
[331182598,1720125032909,-1068.47,0.00013699,2]
[331182599,1720125032919,-300.0,0.000137,5]
[331182600,1720125032928,-180.22762838,0.00013702,2]
[331182601,1720125032937,-150.0,0.00013705,2]
[331182602,1720125032947,-150.0,0.0001371,2]
[331182603,1720125032957,-150.0,0.00013711,2]
[331182604,1720125032967,-150.0,0.00013712,2]
[331182605,1720125032976,-150.0,0.00013715,2]
[331182606,1720125032985,-150.0,0.00013715,2]
[331182607,1720125032996,-150.0,0.0001372,2]
[331182608,1720125033005,-150.0,0.00013721,2]
[331182609,1720125033016,-150.0,0.00013725,2]
[331182610,1720125033026,-150.0,0.00013727,2]
[331182611,1720125033036,-1500.0,0.00013727,2]
[331182612,1720125033046,-150.0,0.00013732,2]
[331182613,1720125033055,-276.77600181,0.00013732,2]
[331182614,1720125033064,-150.0,0.00013732,2]
[331182615,1720125033074,-150.0,0.00013732,2]
[331182616,1720125033085,-300.0,0.00013735,2]
[331182617,1720125033094,-150.0,0.00013737,2]
[331182618,1720125033104,-150.0,0.00013737,2]
[331182619,1720125033115,-150.0,0.00013737,2]
[331182620,1720125033125,-300.0,0.00013737,2]
[331182621,1720125033135,-150.0,0.00013739,2]
[331182622,1720125033145,-150.0,0.0001374,2]
[331182623,1720125033156,-150.0,0.00013743,2]
[331182624,1720125033165,-150.0,0.00013743,2]
[331182625,1720125033175,-150.0,0.00013745,2]
[331182626,1720125033185,-300.0,0.00013747,2]
[331182627,1720125033195,-150.0,0.00013748,2]
[331182628,1720125033204,-1500.0,0.0001375,2]
[331182629,1720125033213,-150.0,0.00013754,2]
[331182630,1720125033223,-150.0,0.00013757,2]
[331182631,1720125033235,-150.0,0.00013757,2]
[331182632,1720125033251,-150.0,0.00013758,2]
[331182633,1720125033260,-300.0,0.00013758,2]
[331182634,1720125033270,-1271.27601338,0.00013759,2]
[331182635,1720125033281,-150.0,0.0001376,2]
[331182636,1720125033290,-150.0,0.0001376,2]
[331182637,1720125033300,-150.0,0.00013761,2]
[331182638,1720125033309,-1500.0,0.00013761,2]
[331182639,1720125033321,-150.0,0.00013762,2]
[331182640,1720125033331,-150.0,0.00013763,2]
[331182641,1720125033340,-150.0,0.00013763,2]
[331182642,1720125033350,-1500.0,0.00013765,2]
[331182643,1720125033361,-150.0,0.00013766,2]
[331182644,1720125033371,-150.0,0.00013766,2]
[331182645,1720125033380,-1500.0,0.00013767,2]
[331182646,1720125033390,-150.0,0.00013771,2]
[331182647,1720125033399,-150.0,0.00013771,2]
[331182648,1720125033408,-150.0,0.00013772,2]
[331182649,1720125033418,-1355.22743011,0.00013772,2]
[331182650,1720125033428,-150.0,0.00013774,2]
[331182651,1720125033437,-150.0,0.00013775,2]
[331182652,1720125033446,-150.0,0.00013777,2]
[331182653,1720125033455,-1500.0,0.00013778,2]
[331182654,1720125033467,-300.0,0.00013779,2]
[331182655,1720125033478,-1500.0,0.0001378,2]
[331182656,1720125033487,-150.0,0.00013781,2]
[331182657,1720125033497,-150.0,0.00013782,2]
[331182658,1720125033508,-150.0,0.00013783,2]
[331182659,1720125033518,-150.0,0.00013784,2]
[331182660,1720125033527,-150.0,0.00013788,2]
[331182661,1720125033537,-150.0,0.00013789,2]
[331182662,1720125033547,-150.0,0.00013789,2]
[331182663,1720125033557,-1500.0,0.00013791,2]
[331182664,1720125033567,-150.0,0.00013792,2]
[331182665,1720125033578,-150.0,0.00013792,2]
[331182666,1720125033587,-150.0,0.00013793,2]
[331182667,1720125033600,-300.0,0.00013793,2]
[331182668,1720125033611,-150.0,0.00013794,2]
[331182669,1720125033621,-150.0,0.00013795,2]
[331182670,1720125033630,-150.0,0.00013796,2]
[331182671,1720125033642,-150.0,0.00013799,2]
[331182672,1720125033651,-700.0,0.000138,5]
[331182673,1720125033660,-926.9706,0.000138,2]
[331182674,1720125033670,-300.0,0.00013801,2]
[331182675,1720125033679,-300.0,0.00013801,2]
[331182676,1720125033689,-150.0,0.00013804,2]
[331182677,1720125033700,-150.0,0.00013805,2]
[331182678,1720125033709,-1500.0,0.00013806,2]
[331182679,1720125033720,-150.0,0.00013807,2]
[331182680,1720125033732,-150.0,0.00013811,2]
[331182681,1720125033742,-150.0,0.00013813,2]
[331182682,1720125033754,-150.0,0.00013816,2]
[331182683,1720125033764,-1500.0,0.00013818,2]
[331182684,1720125033775,-300.0,0.00013819,2]
[331182685,1720125033784,-1500.0,0.00013819,2]
[331182686,1720125033795,-150.0,0.00013822,2]
[331182687,1720125033807,-150.0,0.00013822,2]
[331182688,1720125033818,-150.0,0.00013824,2]
[331182689,1720125033828,-150.0,0.00013828,2]
[331182690,1720125033837,-300.0,0.00013828,2]
[331182691,1720125033847,-150.0,0.00013831,2]
[331182692,1720125033857,-150.0,0.00013832,2]
[331182693,1720125033866,-300.0,0.00013832,2]
[331182694,1720125033875,-150.0,0.00013833,2]
[331182695,1720125033885,-150.0,0.00013835,2]
[331182696,1720125033894,-1500.0,0.00013836,2]
[331182697,1720125033904,-1500.0,0.00013839,2]
[331182698,1720125033913,-150.0,0.00013839,2]
[331182699,1720125033923,-150.0,0.0001384,2]
[331182700,1720125033933,-150.0,0.0001384,2]
[331182701,1720125033942,-150.0,0.00013841,2]
[331182702,1720125033952,-150.0,0.00013841,2]
[331182703,1720125033961,-150.0,0.00013841,2]
[331182704,1720125033971,-1500.0,0.00013844,2]
[331182705,1720125033980,-150.0,0.00013845,2]
[331182706,1720125033990,-287.9059779,0.00013846,2]
[331182707,1720125034009,-556.26670477,0.00013846,2]
[331182708,1720125034021,-392.7028057,0.00013846,2]
[331182709,1720125034033,-263.12451163,0.00013846,2]
[331182710,1720125034042,-4.94559769,0.00013849,2]
[331182711,1720125034059,-145.05440231,0.00013849,2]
[331182712,1720125034069,-150.0,0.00013849,2]
[331182713,1720125034078,-580.10367043,0.0001385,2]
[331182714,1720125034090,-919.89632957,0.0001385,2]
[331182715,1720125034099,-150.0,0.00013853,2]
[331182716,1720125034115,-150.0,0.00013853,2]
[331182717,1720125034125,-150.0,0.00013854,2]
[331182718,1720125034140,-1500.0,0.00013856,2]
[331182719,1720125034149,-839.42,0.00013856,3]
[331182720,1720125034159,-150.0,0.00013859,2]
[331182721,1720125034169,-1500.0,0.00013859,2]
[331182722,1720125034178,-578.60309,0.0001386,2]
[331182723,1720125034188,-150.0,0.0001386,2]
[331182724,1720125034197,-369.84165146,0.0001386,2]
[331182725,1720125034232,-1031.62934149,0.0001386,2]
[331182733,1720125037948,-358.005,0.00013574,2]
[331182734,1720125037960,-8049.6501676,0.00013574,2]
[331182735,1720125037976,-1642.6789177,0.00013574,2]
[331182736,1720125037988,-673.38953007,0.00013574,2]
[331182737,1720125038003,-383.65,0.00013574,2]
[331182738,1720125038015,-674.10473515,0.00013574,2]
[331182739,1720125038034,-2795.04280542,0.00013574,2]
[331182740,1720125038044,-98.52900705,0.0001386,2]
[331182741,1720125038054,-150.0,0.00013861,2]
[331182742,1720125038064,-1500.0,0.00013866,2]
[331182743,1720125038074,-150.0,0.00013869,2]
[331182744,1720125038084,-150.0,0.00013875,2]
[331182745,1720125038094,-150.0,0.00013876,2]
[331182746,1720125038104,-300.0,0.00013877,2]
[331182747,1720125038115,-150.0,0.00013878,2]
[331182748,1720125038125,-150.0,0.00013878,2]
[331182749,1720125038135,-165.09494553,0.00013878,2]
[331182750,1720125038165,-799.69669765,0.00013878,2]
[331182751,1720125038177,-535.20835682,0.00013878,2]
[331182752,1720125038187,-1500.0,0.0001388,2]
[331182753,1720125038197,-150.0,0.00013881,2]
[331182754,1720125038207,-150.0,0.00013883,2]
[331182755,1720125038217,-150.0,0.00013883,2]
[331182756,1720125038227,-500.0,0.00013887,2]
[331182757,1720125038237,-200.0,0.00013887,2]
[331182758,1720125038247,-150.0,0.00013887,2]
[331182759,1720125038257,-150.0,0.00013887,2]
[331182760,1720125038267,-500.0,0.00013888,2]
[331182761,1720125038288,-500.0,0.00013888,2]
[331182762,1720125038297,-500.0,0.00013888,2]
[331182763,1720125038307,-200.0,0.00013888,2]
[331182764,1720125038317,-150.0,0.00013888,2]
[331182765,1720125038330,-730.59789517,0.00013889,2]
[331182766,1720125038340,-300.0,0.0001389,2]
[331182767,1720125038350,-150.0,0.00013891,2]
[331182768,1720125038360,-150.0,0.00013891,2]
[331182770,1720125038370,-300.0,0.00013894,2]
[331182773,1720125038380,-300.0,0.00013897,2]
[331182775,1720125038389,-1500.0,0.00013898,2]
[331182777,1720125038399,-150.0,0.00013899,2]
[331182779,1720125038408,-1133.92751376,0.00013899,2]
[331182781,1720125038418,-11682.1071,0.000139,2]
[331182783,1720125038427,-2004.0866,0.000139,2]
[331182785,1720125038437,-291.91302274,0.000139,2]
[331182787,1720125038446,-444.69114898,0.000139,2]
[331182789,1720125038458,-11237.91215102,0.000139,2]
[331182791,1720125038468,-6610.63555762,0.000139,2]
[331182793,1720125038480,-1396.80532734,0.000139,2]
[331182795,1720125038490,-1076.1998,0.000139,2]
[331182797,1720125038499,-1100.0,0.000139,5]
[331182799,1720125038509,-98.81115266,0.000139,2]
[331182802,1720125038520,-1258.99816617,0.000139,2]
[331182804,1720125038530,-1702.27937752,0.000139,2]
[331182806,1720125038542,-3446.15921502,0.000139,2]
[331182808,1720125038552,-417.30870738,0.000139,2]
[331182810,1720125038564,-1324.46945821,0.000139,2]
[331182812,1720125038574,-341.53451886,0.000139,2]
[331182814,1720125038583,-150.0,0.00013903,2]
[331182817,1720125038594,-1500.0,0.00013903,2]
[331182818,1720125038603,-150.0,0.00013904,2]
[331182821,1720125038614,-150.0,0.00013904,2]
[331182823,1720125038624,-1500.0,0.00013906,2]
[331182825,1720125038634,-1500.0,0.00013907,2]
[331182826,1720125038643,-150.0,0.00013908,2]
[331182828,1720125038653,-150.0,0.00013909,2]
[331182829,1720125038662,-150.0,0.00013915,2]
[331182831,1720125038672,-150.0,0.00013915,2]
[331182834,1720125038684,-150.0,0.00013915,2]
[331182836,1720125038694,-73.28887708,0.00013915,2]
[331182838,1720125038707,-76.71112292,0.00013915,2]
[331182839,1720125038717,-150.0,0.00013917,2]
[331182841,1720125038727,-1500.0,0.00013919,2]
[331182843,1720125038741,-150.0,0.0001392,2]